[Event "Titled Tuesday Blitz March 07 Early 2023"]
[White "Zacurdajev, Dmitry"]
[Black "Dehtiarov, Roman"]
[WhiteFideId "4196309"]
[BlackFideId "14186640"]
[WhiteElo "2179"]
[BlackElo "2162"]
[Result "0-1"]
[Round "08"]
[TimeControl "180+2"]
[Date "2023.03.07"]
[WhiteClock "0:02:32"]
[BlackClock "0:02:52"]

1. d4 {[%clk 0:02:58]}  Nf6 {[%clk 0:02:59]} 2. c4 {[%clk 0:02:57]}  e6 {[%clk 0:02:59]} 3. Nc3 {[%clk 0:02:58]}  Bb4 {[%clk 0:03:00]} 4. Qc2 {[%clk 0:02:57]}  O-O {[%clk 0:03:00]} 5. a3 {[%clk 0:02:57]}  Bxc3+ {[%clk 0:03:00]} 6. Qxc3 {[%clk 0:02:58]}  b6 {[%clk 0:02:58]} 7. Bg5 {[%clk 0:02:58]}  h6 {[%clk 0:02:58]} 8. Bh4 {[%clk 0:02:58]}  Bb7 {[%clk 0:02:59]} 9. f3 {[%clk 0:02:59]}  d6 {[%clk 0:02:59]} 10. e3 {[%clk 0:02:58]}  Nbd7 {[%clk 0:02:59]} 11. Nh3 {[%clk 0:02:58]}  e5 {[%clk 0:02:59]} 12. Be2 {[%clk 0:02:55]}  Re8 {[%clk 0:02:59]} 13. d5 {[%clk 0:02:49]}  a5 {[%clk 0:02:57]} 14. Nf2 {[%clk 0:02:48]}  a4 {[%clk 0:02:56]} 15. Ne4 {[%clk 0:02:43]}  Nxe4 {[%clk 0:02:53]} 16. Bxd8 {[%clk 0:02:36]}  Nxc3 {[%clk 0:02:53]} 17. Bxc7 {[%clk 0:02:36]}  Nxe2 {[%clk 0:02:53]} 18. Kxe2 {[%clk 0:02:36]}  Ba6 {[%clk 0:02:52]} 19. Bxd6 {[%clk 0:02:31]}  Bxc4+ {[%clk 0:02:51]} 20. Kf2 {[%clk 0:02:31]}  Bxd5 {[%clk 0:02:51]} 21. Rhd1 {[%clk 0:02:32]}  Bb3 {[%clk 0:02:52]} 0-1


[Site "https://www.chess.com"]

[Event "Titled Tuesday Blitz March 07 Early 2023"]
[White "Bolourchifard, Farzad"]
[Black "Kokoszczynski, Jan"]
[WhiteFideId "12510084"]
[BlackFideId "1174460"]
[WhiteElo "2317"]
[BlackElo "2139"]
[Result "1-0"]
[Round "08"]
[TimeControl "180+2"]
[Date "2023.03.07"]
[WhiteClock "0:01:07"]
[BlackClock "0:00:10"]

1. e4 {[%clk 0:03:00]}  e5 {[%clk 0:02:58]} 2. Nf3 {[%clk 0:03:00]}  Nc6 {[%clk 0:02:59]} 3. Bc4 {[%clk 0:03:00]}  Bc5 {[%clk 0:02:56]} 4. d3 {[%clk 0:03:00]}  Nf6 {[%clk 0:02:56]} 5. O-O {[%clk 0:03:00]}  d6 {[%clk 0:02:54]} 6. c3 {[%clk 0:02:58]}  a6 {[%clk 0:02:54]} 7. Bb3 {[%clk 0:02:57]}  Ba7 {[%clk 0:02:48]} 8. Nbd2 {[%clk 0:02:56]}  O-O {[%clk 0:02:47]} 9. h3 {[%clk 0:02:54]}  Be6 {[%clk 0:02:41]} 10. Re1 {[%clk 0:02:47]}  Qd7 {[%clk 0:02:33]} 11. Nf1 {[%clk 0:02:46]}  Rad8 {[%clk 0:02:30]} 12. d4 {[%clk 0:02:42]}  Bxb3 {[%clk 0:02:26]} 13. axb3 {[%clk 0:02:26]}  h6 {[%clk 0:02:00]} 14. Ng3 {[%clk 0:02:23]}  Rfe8 {[%clk 0:01:55]} 15. d5 {[%clk 0:02:15]}  Ne7 {[%clk 0:01:54]} 16. Nh4 {[%clk 0:02:15]}  Ng6 {[%clk 0:01:36]} 17. Nhf5 {[%clk 0:02:08]}  Kh7 {[%clk 0:01:23]} 18. Qf3 {[%clk 0:02:07]}  Ng8 {[%clk 0:01:18]} 19. Nh5 {[%clk 0:02:07]}  c6 {[%clk 0:01:13]} 20. c4 {[%clk 0:01:56]}  cxd5 {[%clk 0:01:11]} 21. cxd5 {[%clk 0:01:57]}  Rc8 {[%clk 0:00:53]} 22. Nhxg7 {[%clk 0:01:56]}  Rf8 {[%clk 0:00:50]} 23. Bxh6 {[%clk 0:01:56]}  Rc2 {[%clk 0:00:34]} 24. Be3 {[%clk 0:01:39]}  Bxe3 {[%clk 0:00:30]} 25. Rxe3 {[%clk 0:01:33]}  Nf6 {[%clk 0:00:28]} 26. Nh5 {[%clk 0:01:32]}  Qd8 {[%clk 0:00:27]} 27. Rc3 {[%clk 0:01:10]}  Rxb2 {[%clk 0:00:20]} 28. Rc8 {[%clk 0:01:09]}  Qxc8 {[%clk 0:00:09]} 29. Nxf6+ {[%clk 0:01:08]}  Kh8 {[%clk 0:00:10]} 30. Qh5# {[%clk 0:01:07]} 1-0


[Site "https://www.chess.com"]

[Event "Titled Tuesday Blitz March 07 Early 2023"]
[White "Petrosian, Karlen"]
[Black "Zarnicki, Pablo"]
[WhiteFideId "4176146"]
[BlackFideId "100137"]
[WhiteElo "2345"]
[BlackElo "2468"]
[Result "1-0"]
[Round "08"]
[TimeControl "180+2"]
[Date "2023.03.07"]
[WhiteClock "0:00:14"]
[BlackClock "0:00:15"]

1. e4 {[%clk 0:03:00]}  e5 {[%clk 0:02:57]} 2. Nc3 {[%clk 0:03:00]}  Nf6 {[%clk 0:02:55]} 3. Bc4 {[%clk 0:02:57]}  Nxe4 {[%clk 0:02:55]} 4. Qh5 {[%clk 0:02:57]}  Nd6 {[%clk 0:02:41]} 5. Qxe5+ {[%clk 0:02:57]}  Qe7 {[%clk 0:02:36]} 6. Qxe7+ {[%clk 0:02:56]}  Bxe7 {[%clk 0:02:36]} 7. Bb3 {[%clk 0:02:57]}  c6 {[%clk 0:02:36]} 8. d4 {[%clk 0:02:57]}  Nf5 {[%clk 0:02:35]} 9. d5 {[%clk 0:02:57]}  Nd4 {[%clk 0:02:34]} 10. Nge2 {[%clk 0:02:45]}  Nxb3 {[%clk 0:02:33]} 11. axb3 {[%clk 0:02:45]}  O-O {[%clk 0:02:33]} 12. Bf4 {[%clk 0:02:44]}  d6 {[%clk 0:02:30]} 13. Nd4 {[%clk 0:02:39]}  a6 {[%clk 0:02:19]} 14. O-O {[%clk 0:02:25]}  c5 {[%clk 0:02:16]} 15. Nf3 {[%clk 0:02:22]}  Bf5 {[%clk 0:02:08]} 16. Rfe1 {[%clk 0:02:16]}  Bf6 {[%clk 0:01:44]} 17. Bxd6 {[%clk 0:02:05]}  Rc8 {[%clk 0:01:39]} 18. Bxc5 {[%clk 0:01:49]}  Nd7 {[%clk 0:01:36]} 19. Bd4 {[%clk 0:01:46]}  Bxc2 {[%clk 0:01:36]} 20. Bxf6 {[%clk 0:01:02]}  Nxf6 {[%clk 0:01:35]} 21. Nd4 {[%clk 0:01:03]}  Bg6 {[%clk 0:01:30]} 22. Re7 {[%clk 0:00:59]}  Rd8 {[%clk 0:01:17]} 23. Rxb7 {[%clk 0:00:55]}  Nxd5 {[%clk 0:01:18]} 24. Nxd5 {[%clk 0:00:56]}  Rxd5 {[%clk 0:01:18]} 25. Nc6 {[%clk 0:00:40]}  Rd2 {[%clk 0:01:06]} 26. f3 {[%clk 0:00:24]}  h6 {[%clk 0:01:00]} 27. Ne7+ {[%clk 0:00:23]}  Kh7 {[%clk 0:01:00]} 28. Nxg6 {[%clk 0:00:23]}  Kxg6 {[%clk 0:00:59]} 29. Rb6+ {[%clk 0:00:23]}  f6 {[%clk 0:00:59]} 30. Raxa6 {[%clk 0:00:23]}  Re8 {[%clk 0:00:47]} 31. Re6 {[%clk 0:00:22]}  Rc8 {[%clk 0:00:47]} 32. Rac6 {[%clk 0:00:21]}  Ra8 {[%clk 0:00:47]} 33. Ra6 {[%clk 0:00:19]}  Rc8 {[%clk 0:00:47]} 34. Rac6 {[%clk 0:00:16]}  Rb8 {[%clk 0:00:47]} 35. Re4 {[%clk 0:00:13]}  Rxb3 {[%clk 0:00:44]} 36. Rg4+ {[%clk 0:00:13]}  Kf5 {[%clk 0:00:39]} 37. Rxg7 {[%clk 0:00:13]}  Rbxb2 {[%clk 0:00:40]} 38. h4 {[%clk 0:00:14]}  h5 {[%clk 0:00:26]} 39. Kh2 {[%clk 0:00:13]}  Ke5 {[%clk 0:00:18]} 40. Rc5+ {[%clk 0:00:13]}  Kd4 {[%clk 0:00:17]} 41. Rxh5 {[%clk 0:00:13]}  Ke3 {[%clk 0:00:17]} 42. Rc5 {[%clk 0:00:11]}  Kf2 {[%clk 0:00:17]} 43. h5 {[%clk 0:00:11]}  Rd1 {[%clk 0:00:16]} 44. h6 {[%clk 0:00:10]}  Rbb1 {[%clk 0:00:17]} 45. Rc2+ {[%clk 0:00:10]}  Ke3 {[%clk 0:00:17]} 46. Kg3 {[%clk 0:00:10]}  Rh1 {[%clk 0:00:16]} 47. h7 {[%clk 0:00:11]}  Rb8 {[%clk 0:00:17]} 48. Re7+ {[%clk 0:00:11]}  Kd3 {[%clk 0:00:17]} 49. Rcc7 {[%clk 0:00:10]}  Rh8 {[%clk 0:00:17]} 50. Rcd7+ {[%clk 0:00:11]}  Kc4 {[%clk 0:00:16]} 51. Rd6 {[%clk 0:00:12]}  Rh6 {[%clk 0:00:16]} 52. Rc7+ {[%clk 0:00:11]}  Kb5 {[%clk 0:00:16]} 53. Re6 {[%clk 0:00:10]}  Rg6+ {[%clk 0:00:14]} 54. Kf2 {[%clk 0:00:09]}  Rh6 {[%clk 0:00:14]} 55. Rf7 {[%clk 0:00:10]}  Kc5 {[%clk 0:00:13]} 56. Rexf6 {[%clk 0:00:10]}  Rxf6 {[%clk 0:00:12]} 57. Rxf6 {[%clk 0:00:11]}  Rxh7 {[%clk 0:00:13]} 58. Re6 {[%clk 0:00:11]}  Kd4 {[%clk 0:00:13]} 59. Re4+ {[%clk 0:00:12]}  Kd5 {[%clk 0:00:13]} 60. g4 {[%clk 0:00:13]}  Rf7 {[%clk 0:00:13]} 61. Kg3 {[%clk 0:00:13]}  Rf8 {[%clk 0:00:14]} 62. Re1 {[%clk 0:00:13]}  Rg8 {[%clk 0:00:15]} 63. f4 {[%clk 0:00:13]}  Rf8 {[%clk 0:00:15]} 64. g5 {[%clk 0:00:14]}  Ra8 {[%clk 0:00:15]} 65. Kg4 {[%clk 0:00:14]} 1-0


[Site "https://www.chess.com"]

[Event "Titled Tuesday Blitz March 07 Early 2023"]
[White "Kowalczyk, Pawel"]
[Black "Baches Garcia, Guillermo"]
[WhiteFideId "1130641"]
[BlackFideId "2209764"]
[WhiteElo "2324"]
[BlackElo "2516"]
[Result "1-0"]
[Round "08"]
[TimeControl "180+2"]
[Date "2023.03.07"]
[WhiteClock "0:00:14"]
[BlackClock "0:00:01"]

1. e4 {[%clk 0:02:57]}  c5 {[%clk 0:02:59]} 2. Ne2 {[%clk 0:02:57]}  d6 {[%clk 0:02:59]} 3. g3 {[%clk 0:02:57]}  Nf6 {[%clk 0:02:59]} 4. Bg2 {[%clk 0:02:57]}  Nc6 {[%clk 0:02:52]} 5. O-O {[%clk 0:02:55]}  g6 {[%clk 0:02:52]} 6. c3 {[%clk 0:02:55]}  e5 {[%clk 0:02:51]} 7. d4 {[%clk 0:02:55]}  Bg4 {[%clk 0:02:43]} 8. f3 {[%clk 0:02:55]}  Bd7 {[%clk 0:02:40]} 9. Be3 {[%clk 0:02:52]}  Be7 {[%clk 0:02:34]} 10. Nd2 {[%clk 0:02:32]}  O-O {[%clk 0:02:30]} 11. h3 {[%clk 0:02:20]}  cxd4 {[%clk 0:02:17]} 12. cxd4 {[%clk 0:02:20]}  exd4 {[%clk 0:02:17]} 13. Nxd4 {[%clk 0:02:20]}  Nxd4 {[%clk 0:02:18]} 14. Bxd4 {[%clk 0:02:20]}  d5 {[%clk 0:02:16]} 15. e5 {[%clk 0:02:19]}  Nh5 {[%clk 0:02:14]} 16. Kh2 {[%clk 0:02:16]}  Ng7 {[%clk 0:02:01]} 17. f4 {[%clk 0:02:15]}  Bc6 {[%clk 0:01:51]} 18. Nf3 {[%clk 0:02:12]}  Ne6 {[%clk 0:01:31]} 19. Qd2 {[%clk 0:02:09]}  Bb5 {[%clk 0:01:17]} 20. Rfd1 {[%clk 0:02:07]}  Rc8 {[%clk 0:01:06]} 21. Rac1 {[%clk 0:02:03]}  Rxc1 {[%clk 0:01:03]} 22. Rxc1 {[%clk 0:02:03]}  b6 {[%clk 0:00:58]} 23. b3 {[%clk 0:01:55]}  Nc5 {[%clk 0:00:57]} 24. Qe3 {[%clk 0:01:38]}  Qd7 {[%clk 0:00:56]} 25. h4 {[%clk 0:01:33]}  Qf5 {[%clk 0:00:52]} 26. Ng5 {[%clk 0:01:29]}  h6 {[%clk 0:00:43]} 27. Nf3 {[%clk 0:01:23]}  Qd3 {[%clk 0:00:39]} 28. Nd2 {[%clk 0:01:17]}  Qxe3 {[%clk 0:00:34]} 29. Bxe3 {[%clk 0:01:17]}  Rd8 {[%clk 0:00:33]} 30. Bd4 {[%clk 0:01:13]}  Ne6 {[%clk 0:00:33]} 31. Nf3 {[%clk 0:01:10]}  Bc5 {[%clk 0:00:32]} 32. Bb2 {[%clk 0:01:05]}  d4 {[%clk 0:00:23]} 33. Nd2 {[%clk 0:01:05]}  d3 {[%clk 0:00:19]} 34. Ne4 {[%clk 0:00:57]}  Nd4 {[%clk 0:00:17]} 35. Rd1 {[%clk 0:00:51]}  Nf5 {[%clk 0:00:16]} 36. Nxc5 {[%clk 0:00:44]}  bxc5 {[%clk 0:00:15]} 37. Rd2 {[%clk 0:00:39]}  c4 {[%clk 0:00:15]} 38. bxc4 {[%clk 0:00:38]}  Bxc4 {[%clk 0:00:16]} 39. Be4 {[%clk 0:00:38]}  Ne3 {[%clk 0:00:15]} 40. Kg1 {[%clk 0:00:37]}  h5 {[%clk 0:00:10]} 41. Ba3 {[%clk 0:00:32]}  Ng4 {[%clk 0:00:08]} 42. Bd6 {[%clk 0:00:30]}  Rc8 {[%clk 0:00:03]} 43. Bxd3 {[%clk 0:00:25]}  Bxd3 {[%clk 0:00:03]} 44. Rxd3 {[%clk 0:00:26]}  Rc1+ {[%clk 0:00:03]} 45. Kg2 {[%clk 0:00:25]}  Rc2+ {[%clk 0:00:04]} 46. Kf3 {[%clk 0:00:25]}  Rxa2 {[%clk 0:00:04]} 47. Rb3 {[%clk 0:00:21]}  a5 {[%clk 0:00:04]} 48. Rb8+ {[%clk 0:00:18]}  Kh7 {[%clk 0:00:04]} 49. Rb7 {[%clk 0:00:18]}  Kg8 {[%clk 0:00:04]} 50. Ra7 {[%clk 0:00:16]}  a4 {[%clk 0:00:04]} 51. Bc5 {[%clk 0:00:15]}  Ra1 {[%clk 0:00:03]} 52. Bd4 {[%clk 0:00:15]}  Ra2 {[%clk 0:00:03]} 53. Ra8+ {[%clk 0:00:14]}  Kh7 {[%clk 0:00:01]} 54. e6 {[%clk 0:00:15]}  f6 {[%clk 0:00:01]} 55. e7 {[%clk 0:00:14]} 1-0


[Site "https://www.chess.com"]

[Event "Titled Tuesday Blitz March 07 Early 2023"]
[White "Matinian, Nikita"]
[Black "surrenderPLS"]
[WhiteFideId "24129100"]
[WhiteElo "2422"]
[BlackElo "2506"]
[Result "1-0"]
[Round "08"]
[TimeControl "180+2"]
[Date "2023.03.07"]
[WhiteClock "0:02:30"]
[BlackClock "0:01:40"]

1. e4 {[%clk 0:02:58]}  c5 {[%clk 0:03:00]} 2. Nc3 {[%clk 0:02:54]}  d6 {[%clk 0:03:00]} 3. Bb5+ {[%clk 0:02:53]}  Bd7 {[%clk 0:02:58]} 4. Bc4 {[%clk 0:02:54]}  g6 {[%clk 0:02:55]} 5. f4 {[%clk 0:02:54]}  Bg7 {[%clk 0:02:56]} 6. Nf3 {[%clk 0:02:54]}  Nc6 {[%clk 0:02:56]} 7. d3 {[%clk 0:02:55]}  e6 {[%clk 0:02:54]} 8. f5 {[%clk 0:02:54]}  Nge7 {[%clk 0:02:51]} 9. Ng5 {[%clk 0:02:45]}  gxf5 {[%clk 0:02:48]} 10. Qh5 {[%clk 0:02:41]}  Ng6 {[%clk 0:02:34]} 11. exf5 {[%clk 0:02:38]}  h6 {[%clk 0:02:25]} 12. Nxf7 {[%clk 0:02:36]}  Kxf7 {[%clk 0:02:21]} 13. Qxg6+ {[%clk 0:02:35]}  Kf8 {[%clk 0:02:12]} 14. fxe6 {[%clk 0:02:34]}  Bxc3+ {[%clk 0:01:40]} 15. bxc3 {[%clk 0:02:32]}  Ne5 {[%clk 0:01:40]} 16. O-O+ {[%clk 0:02:30]} 1-0


[Site "https://www.chess.com"]

[Event "Titled Tuesday Blitz March 07 Early 2023"]
[White "Erzhanov, Arman"]
[Black "Preotu, Razvan"]
[WhiteFideId "4138821"]
[BlackFideId "2613280"]
[WhiteElo "2138"]
[BlackElo "2407"]
[Result "0-1"]
[Round "08"]
[TimeControl "180+2"]
[Date "2023.03.07"]
[WhiteClock "0:00:04"]
[BlackClock "0:00:16"]

1. e4 {[%clk 0:02:57]}  c5 {[%clk 0:02:50]} 2. Nf3 {[%clk 0:02:56]}  d6 {[%clk 0:02:50]} 3. Bb5+ {[%clk 0:02:51]}  Nd7 {[%clk 0:02:50]} 4. d4 {[%clk 0:02:52]}  cxd4 {[%clk 0:02:49]} 5. Qxd4 {[%clk 0:02:52]}  a6 {[%clk 0:02:49]} 6. Be2 {[%clk 0:02:52]}  Ngf6 {[%clk 0:02:49]} 7. O-O {[%clk 0:02:52]}  e5 {[%clk 0:02:45]} 8. Qe3 {[%clk 0:02:48]}  Nc5 {[%clk 0:02:44]} 9. Nfd2 {[%clk 0:02:37]}  Be7 {[%clk 0:02:43]} 10. c4 {[%clk 0:02:37]}  O-O {[%clk 0:02:33]} 11. Nc3 {[%clk 0:02:38]}  Ng4 {[%clk 0:02:34]} 12. Bxg4 {[%clk 0:02:27]}  Bxg4 {[%clk 0:02:35]} 13. f3 {[%clk 0:01:55]}  Bg5 {[%clk 0:02:34]} 14. Qe2 {[%clk 0:01:51]}  Be6 {[%clk 0:02:33]} 15. b3 {[%clk 0:01:50]}  b5 {[%clk 0:02:08]} 16. cxb5 {[%clk 0:01:33]}  Qb6 {[%clk 0:01:42]} 17. Qf2 {[%clk 0:01:03]}  axb5 {[%clk 0:01:26]} 18. b4 {[%clk 0:01:02]}  Nd7 {[%clk 0:01:13]} 19. Qxb6 {[%clk 0:01:01]}  Nxb6 {[%clk 0:01:14]} 20. Nb3 {[%clk 0:00:21]}  Be7 {[%clk 0:00:56]} 21. Na5 {[%clk 0:00:16]}  d5 {[%clk 0:00:46]} 22. a3 {[%clk 0:00:16]}  d4 {[%clk 0:00:39]} 23. Nxb5 {[%clk 0:00:16]}  Rfc8 {[%clk 0:00:33]} 24. Bb2 {[%clk 0:00:09]}  Nc4 {[%clk 0:00:32]} 25. Nxc4 {[%clk 0:00:02]}  Bxc4 {[%clk 0:00:33]} 26. a4 {[%clk 0:00:03]}  Bxf1 {[%clk 0:00:31]} 27. Kxf1 {[%clk 0:00:04]}  Rc2 {[%clk 0:00:28]} 28. Bc1 {[%clk 0:00:02]}  Bxb4 {[%clk 0:00:28]} 29. f4 {[%clk 0:00:02]}  Rac8 {[%clk 0:00:26]} 30. fxe5 {[%clk 0:00:02]}  Rxc1+ {[%clk 0:00:26]} 31. Rxc1 {[%clk 0:00:03]}  Rxc1+ {[%clk 0:00:26]} 32. Ke2 {[%clk 0:00:04]}  Ra1 {[%clk 0:00:24]} 33. Kd3 {[%clk 0:00:03]}  Rxa4 {[%clk 0:00:24]} 34. Kxd4 {[%clk 0:00:04]}  h5 {[%clk 0:00:20]} 35. Kd5 {[%clk 0:00:04]}  Ra5 {[%clk 0:00:18]} 36. Kc6 {[%clk 0:00:03]}  Ra2 {[%clk 0:00:17]} 37. g3 {[%clk 0:00:02]}  Rxh2 {[%clk 0:00:16]} 38. Nd4 {[%clk 0:00:01]}  Rg2 {[%clk 0:00:16]} 39. Nf5 {[%clk 0:00:02]}  g6 {[%clk 0:00:16]} 40. Nd6 {[%clk 0:00:02]}  Rxg3 {[%clk 0:00:15]} 41. Kd7 {[%clk 0:00:03]}  Bxd6 {[%clk 0:00:13]} 42. exd6 {[%clk 0:00:03]}  h4 {[%clk 0:00:13]} 43. Ke7 {[%clk 0:00:02]}  h3 {[%clk 0:00:14]} 44. d7 {[%clk 0:00:02]}  Rd3 {[%clk 0:00:14]} 45. d8=Q+ {[%clk 0:00:03]}  Rxd8 {[%clk 0:00:15]} 46. Kxd8 {[%clk 0:00:04]}  h2 {[%clk 0:00:15]} 47. e5 {[%clk 0:00:04]}  h1=Q {[%clk 0:00:16]} 48. Ke7 {[%clk 0:00:05]}  Qc6 {[%clk 0:00:15]} 49. Kd8 {[%clk 0:00:04]}  g5 {[%clk 0:00:15]} 50. e6 {[%clk 0:00:04]}  Qxe6 {[%clk 0:00:15]} 51. Kc7 {[%clk 0:00:04]}  g4 {[%clk 0:00:16]} 0-1


[Site "https://www.chess.com"]

[Event "Titled Tuesday Blitz March 07 Early 2023"]
[White "Skliarov, Viktor"]
[Black "Karas, Marek"]
[WhiteFideId "14106736"]
[BlackFideId "14928558"]
[WhiteElo "2289"]
[BlackElo "2233"]
[Result "1-0"]
[Round "08"]
[TimeControl "180+2"]
[Date "2023.03.07"]
[WhiteClock "0:00:23"]
[BlackClock "0:00:02"]

1. e4 {[%clk 0:03:00]}  e6 {[%clk 0:02:58]} 2. d4 {[%clk 0:03:00]}  d5 {[%clk 0:02:59]} 3. e5 {[%clk 0:03:01]}  c5 {[%clk 0:02:50]} 4. c3 {[%clk 0:03:00]}  Nc6 {[%clk 0:02:51]} 5. Nf3 {[%clk 0:02:59]}  Qb6 {[%clk 0:02:47]} 6. a3 {[%clk 0:02:59]}  c4 {[%clk 0:02:42]} 7. Nbd2 {[%clk 0:02:57]}  Na5 {[%clk 0:02:43]} 8. g3 {[%clk 0:02:57]}  Bd7 {[%clk 0:02:35]} 9. h4 {[%clk 0:02:57]}  Ne7 {[%clk 0:02:24]} 10. Bh3 {[%clk 0:02:56]}  h6 {[%clk 0:02:14]} 11. h5 {[%clk 0:02:40]}  O-O-O {[%clk 0:02:14]} 12. O-O {[%clk 0:02:37]}  Qc7 {[%clk 0:02:09]} 13. Nh4 {[%clk 0:02:36]}  Kb8 {[%clk 0:02:08]} 14. f4 {[%clk 0:02:34]}  g6 {[%clk 0:02:05]} 15. Kh2 {[%clk 0:02:29]}  Rg8 {[%clk 0:01:56]} 16. Bg4 {[%clk 0:02:16]}  Nf5 {[%clk 0:01:54]} 17. Ndf3 {[%clk 0:02:12]}  Be7 {[%clk 0:01:26]} 18. hxg6 {[%clk 0:01:54]}  fxg6 {[%clk 0:01:27]} 19. Nxf5 {[%clk 0:01:51]}  exf5 {[%clk 0:01:25]} 20. Bh3 {[%clk 0:01:48]}  Be6 {[%clk 0:01:25]} 21. Be3 {[%clk 0:01:42]}  g5 {[%clk 0:01:23]} 22. Bg2 {[%clk 0:01:41]}  Nb3 {[%clk 0:01:21]} 23. Rb1 {[%clk 0:01:40]}  Rdf8 {[%clk 0:01:21]} 24. Nd2 {[%clk 0:01:37]}  Nxd2 {[%clk 0:01:19]} 25. Qxd2 {[%clk 0:01:35]}  g4 {[%clk 0:01:19]} 26. b3 {[%clk 0:01:11]}  cxb3 {[%clk 0:01:12]} 27. Rxb3 {[%clk 0:01:11]}  Ka8 {[%clk 0:01:06]} 28. Rfb1 {[%clk 0:01:08]}  b6 {[%clk 0:01:05]} 29. a4 {[%clk 0:01:04]}  Rb8 {[%clk 0:00:54]} 30. Qa2 {[%clk 0:00:50]}  Qd7 {[%clk 0:00:44]} 31. Rb5 {[%clk 0:00:46]}  Rgd8 {[%clk 0:00:41]} 32. c4 {[%clk 0:00:44]}  Rbc8 {[%clk 0:00:24]} 33. cxd5 {[%clk 0:00:42]}  Bg8 {[%clk 0:00:23]} 34. a5 {[%clk 0:00:35]}  bxa5 {[%clk 0:00:21]} 35. Qxa5 {[%clk 0:00:33]}  Rc2 {[%clk 0:00:06]} 36. d6+ {[%clk 0:00:30]}  Qc6 {[%clk 0:00:05]} 37. Qxa7+ {[%clk 0:00:22]}  Kxa7 {[%clk 0:00:04]} 38. Ra1+ {[%clk 0:00:22]}  Qa6 {[%clk 0:00:03]} 39. Rb7+ {[%clk 0:00:22]}  Ka8 {[%clk 0:00:02]} 40. Rxa6# {[%clk 0:00:23]} 1-0


[Site "https://www.chess.com"]

[Event "Titled Tuesday Blitz March 07 Early 2023"]
[White "Ozer, Omer Faruk"]
[Black "TimGrutter03"]
[WhiteFideId "6354564"]
[WhiteElo "2260"]
[BlackElo "2497"]
[Result "1-0"]
[Round "08"]
[TimeControl "180+2"]
[Date "2023.03.07"]
[WhiteClock "0:00:19"]
[BlackClock "0:00:04"]

1. d4 {[%clk 0:02:48]}  Nf6 {[%clk 0:02:59]} 2. Nf3 {[%clk 0:02:47]}  g6 {[%clk 0:02:55]} 3. c4 {[%clk 0:02:47]}  Bg7 {[%clk 0:02:55]} 4. Nc3 {[%clk 0:02:47]}  O-O {[%clk 0:02:53]} 5. Bg5 {[%clk 0:02:47]}  h6 {[%clk 0:02:50]} 6. Bh4 {[%clk 0:02:46]}  d6 {[%clk 0:02:49]} 7. e3 {[%clk 0:02:46]}  Bf5 {[%clk 0:02:37]} 8. Be2 {[%clk 0:02:40]}  Ne4 {[%clk 0:02:32]} 9. Nxe4 {[%clk 0:02:39]}  Bxe4 {[%clk 0:02:33]} 10. O-O {[%clk 0:02:39]}  g5 {[%clk 0:02:30]} 11. Bg3 {[%clk 0:02:39]}  c5 {[%clk 0:02:15]} 12. Bd3 {[%clk 0:02:03]}  Bxd3 {[%clk 0:02:12]} 13. Qxd3 {[%clk 0:02:04]}  Qb6 {[%clk 0:02:10]} 14. Rab1 {[%clk 0:02:01]}  Nc6 {[%clk 0:02:08]} 15. d5 {[%clk 0:02:01]}  Nb4 {[%clk 0:02:05]} 16. Qf5 {[%clk 0:01:58]}  Qc7 {[%clk 0:01:45]} 17. a3 {[%clk 0:01:57]}  Na6 {[%clk 0:01:45]} 18. h4 {[%clk 0:01:57]}  gxh4 {[%clk 0:01:44]} 19. Nxh4 {[%clk 0:01:54]}  Rae8 {[%clk 0:01:23]} 20. Rfd1 {[%clk 0:01:42]}  Qc8 {[%clk 0:01:11]} 21. Qf3 {[%clk 0:01:39]}  f5 {[%clk 0:01:06]} 22. Ng6 {[%clk 0:01:37]}  Rf6 {[%clk 0:01:02]} 23. Nf4 {[%clk 0:01:36]}  Nc7 {[%clk 0:01:00]} 24. b4 {[%clk 0:01:31]}  cxb4 {[%clk 0:00:58]} 25. axb4 {[%clk 0:01:30]}  e5 {[%clk 0:00:41]} 26. dxe6 {[%clk 0:01:29]}  Nxe6 {[%clk 0:00:41]} 27. Nd5 {[%clk 0:01:29]}  Rf7 {[%clk 0:00:39]} 28. Rbc1 {[%clk 0:01:24]}  Ng5 {[%clk 0:00:36]} 29. Qh5 {[%clk 0:01:24]}  Ne4 {[%clk 0:00:33]} 30. Bf4 {[%clk 0:01:22]}  Qe6 {[%clk 0:00:32]} 31. Rd3 {[%clk 0:01:04]}  Rd8 {[%clk 0:00:25]} 32. Rcd1 {[%clk 0:01:04]}  Rfd7 {[%clk 0:00:16]} 33. f3 {[%clk 0:00:54]}  Nf6 {[%clk 0:00:16]} 34. Qg6 {[%clk 0:00:54]}  Qf7 {[%clk 0:00:14]} 35. Qxf5 {[%clk 0:00:53]}  Nxd5 {[%clk 0:00:14]} 36. Qxf7+ {[%clk 0:00:51]}  Kxf7 {[%clk 0:00:14]} 37. Rxd5 {[%clk 0:00:52]}  Bf8 {[%clk 0:00:13]} 38. c5 {[%clk 0:00:50]}  Ke6 {[%clk 0:00:10]} 39. cxd6 {[%clk 0:00:49]}  Bg7 {[%clk 0:00:11]} 40. Kf2 {[%clk 0:00:46]}  Rc8 {[%clk 0:00:10]} 41. b5 {[%clk 0:00:42]}  b6 {[%clk 0:00:09]} 42. e4 {[%clk 0:00:41]}  Rc2+ {[%clk 0:00:07]} 43. R1d2 {[%clk 0:00:41]}  Rc4 {[%clk 0:00:06]} 44. g4 {[%clk 0:00:40]}  Rb4 {[%clk 0:00:03]} 45. Kg3 {[%clk 0:00:39]}  Bc3 {[%clk 0:00:02]} 46. R2d3 {[%clk 0:00:38]}  Be1+ {[%clk 0:00:02]} 47. Kh3 {[%clk 0:00:37]}  Rb2 {[%clk 0:00:02]} 48. Rh5 {[%clk 0:00:36]}  Kf7 {[%clk 0:00:01]} 49. Rxh6 {[%clk 0:00:36]}  Ke8 {[%clk 0:00:02]} 50. Rh8+ {[%clk 0:00:35]}  Kf7 {[%clk 0:00:02]} 51. Rh7+ {[%clk 0:00:35]}  Ke6 {[%clk 0:00:03]} 52. Rxd7 {[%clk 0:00:35]}  Kxd7 {[%clk 0:00:04]} 53. e5 {[%clk 0:00:35]}  Bb4 {[%clk 0:00:03]} 54. e6+ {[%clk 0:00:34]}  Kxe6 {[%clk 0:00:03]} 55. d7 {[%clk 0:00:35]}  Be7 {[%clk 0:00:03]} 56. d8=Q {[%clk 0:00:34]}  Bxd8 {[%clk 0:00:03]} 57. Rxd8 {[%clk 0:00:35]}  Rxb5 {[%clk 0:00:04]} 58. Rd6+ {[%clk 0:00:27]}  Ke7 {[%clk 0:00:04]} 59. Rh6 {[%clk 0:00:19]}  a5 {[%clk 0:00:03]} 60. g5 {[%clk 0:00:20]}  Rb4 {[%clk 0:00:02]} 61. Kg4 {[%clk 0:00:20]}  Kf7 {[%clk 0:00:02]} 62. Rf6+ {[%clk 0:00:18]}  Kg7 {[%clk 0:00:02]} 63. Rc6 {[%clk 0:00:18]}  a4 {[%clk 0:00:02]} 64. Kf5 {[%clk 0:00:19]}  a3 {[%clk 0:00:01]} 65. Be5+ {[%clk 0:00:19]}  Kf8 {[%clk 0:00:02]} 66. Bd6+ {[%clk 0:00:19]}  Ke8 {[%clk 0:00:02]} 67. Bxb4 {[%clk 0:00:20]}  Kd7 {[%clk 0:00:03]} 68. Rxb6 {[%clk 0:00:19]}  a2 {[%clk 0:00:04]} 69. Ra6 {[%clk 0:00:19]} 1-0


[Site "https://www.chess.com"]